fUSD/lending_fUSD_20250207
["ID","MTS","AMOUNT","RATE_DAILY","PERIOD"]
[352041403,1738895446224,-57.02476313,0.00016986,2]
[352041405,1738895446234,-677.15,0.00016986,2]
[352041406,1738895446243,-73.1022981,0.00016986,2]
[352041409,1738895446254,-426.8977019,0.00016986,2]
[352041411,1738895446263,-512.10229805,0.00016986,2]
[352041414,1738895446287,-29.39770195,0.00016986,2]
[352041416,1738895446296,-320.92602678,0.00016986,2]
[352041418,1738895446307,-999.23397322,0.00016986,2]
[352041420,1738895446316,-537.76,0.00016986,2]
[352041422,1738895446325,-1252.10602677,0.00016986,2]
[352041425,1738895446336,-352.34397323,0.00016986,2]
[352041426,1738895446346,-571.25602856,0.00016986,2]
[352041430,1738895446365,-422.59803697,0.00016533,2]
[352041431,1738895446374,-706.33397144,0.00016986,2]
[352041433,1738895446384,-905.79,0.00016986,2]
[352041436,1738895446393,-676.31,0.00016986,2]
[352041437,1738895446403,-1116.2,0.00016986,2]
[352041439,1738895446412,-1406.75,0.00016986,2]
[352041441,1738895446423,-500.0,0.00016986,2]
[352041443,1738895446432,-721.61,0.00016986,2]
[352041445,1738895446442,-37.39063918,0.00016986,2]
[352041447,1738895446453,-1000.0,0.00016986,2]
[352041450,1738895446465,-409.3,0.00016986,2]
[352041452,1738895446477,-1123.17936082,0.00016986,2]
[352041454,1738895446487,-936.14,0.00016986,2]
[352041456,1738895446498,-1528.36,0.00016986,2]
[352041458,1738895446507,-649.05,0.00016986,2]
[352041460,1738895446517,-667.45,0.00016986,2]
[352041462,1738895446527,-774.79,0.00016986,2]
[352041464,1738895446536,-500.0,0.00016986,2]
[352041466,1738895446546,-1208.52,0.00016986,2]
[352041468,1738895446557,-500.0,0.00016986,2]
[352041470,1738895446569,-500.0,0.00016986,2]
[352041472,1738895446579,-539.35,0.00016986,2]
[352041474,1738895446589,-846.32,0.00016986,2]
[352041476,1738895446598,-769.85,0.00016986,2]
[352041478,1738895446608,-724.26,0.00016986,2]
[352041481,1738895446619,-500.0,0.00016986,2]
[352041483,1738895446628,-2264.55,0.00016986,2]
[352041485,1738895446638,-656.81,0.00016986,2]
[352041487,1738895446648,-500.0,0.00016986,2]
[352041489,1738895446657,-150.0,0.00016986,2]
[352041490,1738895446666,-946.94,0.00016986,2]
[352041493,1738895446676,-859.01,0.00016986,2]
[352041494,1738895446685,-500.0,0.00016986,2]
[352041497,1738895446695,-500.0,0.00016986,2]
[352041498,1738895446704,-500.0,0.00016986,2]
[352041500,1738895446713,-834.43,0.00016986,2]
[352041502,1738895446722,-500.0,0.00016986,2]
[352041504,1738895446731,-1416.28,0.00016986,2]
[352041506,1738895446740,-551.62,0.00016986,2]
[352041508,1738895446749,-464.31460681,0.00016986,2]
[352041510,1738895446758,-500.0,0.00016986,2]
[352041512,1738895446768,-657.98,0.00016986,2]
[352041514,1738895446777,-500.0,0.00016986,2]
[352041516,1738895446786,-908.12,0.00016986,2]
[352041518,1738895446796,-200.0,0.00016988,2]
[352041520,1738895446805,-150.0,0.00016988,2]
[352041522,1738895446814,-200.0,0.00016988,2]
[352041524,1738895446823,-5615.7760377,0.00017,2]
[352041526,1738895446832,-366.0,0.00017,2]
[352041528,1738895446842,-747.0,0.00017,2]
[352041530,1738895446851,-231.0,0.00017,2]
[352041532,1738895446861,-150.0,0.00017013,2]
[352041534,1738895446870,-500.0,0.00017013,2]
[352041536,1738895446879,-150.0,0.00017021,2]
[352041538,1738895446888,-721.67491681,0.00017023,2]
[352041540,1738895446898,-189.67875246,0.00017041,2]
[352041542,1738895446907,-500.0,0.00017041,2]
[352041544,1738895446916,-419.97406451,0.00017041,5]
[352041546,1738895446926,-316.19471558,0.00017044,2]
[352041548,1738895446935,-500.0,0.00017068,2]
[352041550,1738895446944,-500.0,0.00017073,2]
[352041552,1738895446953,-150.0,0.00017084,2]
[352041554,1738895446963,-500.0,0.00017096,2]
[352041556,1738895446972,-1038.0,0.000171,2]
[352041558,1738895446981,-150.0,0.00017117,2]
[352041560,1738895446990,-626.22,0.00017121,2]
[352041562,1738895447000,-1043.04,0.00017121,2]
[352041563,1738895447010,-765.92,0.00017121,2]
[352041566,1738895447019,-500.0,0.00017121,2]
[352041568,1738895447029,-840.88,0.00017121,2]
[352041569,1738895447038,-307.53,0.00017122,2]
[352041570,1738895447048,-541.9,0.00017122,2]
[352041571,1738895447058,-500.0,0.00017122,2]
[352041572,1738895447067,-500.0,0.00017122,2]
[352041573,1738895447076,-500.0,0.00017122,2]
[352041574,1738895447085,-500.0,0.00017122,2]
[352041575,1738895447094,-262.63872791,0.00017122,2]
[352041576,1738895447103,-500.0,0.00017122,2]
[352041577,1738895447112,-359.67381471,0.00017122,2]
[352041578,1738895447121,-378.5,0.00017122,2]
[352041579,1738895447130,-500.0,0.00017122,2]
[352041580,1738895447139,-500.0,0.00017122,2]
[352041581,1738895447148,-500.0,0.00017122,2]
[352041582,1738895447156,-500.0,0.00017122,2]
[352041583,1738895447166,-500.0,0.00017122,2]
[352041584,1738895447177,-556.03298072,0.00017122,2]
[352041585,1738895447186,-500.0,0.00017122,2]
[352041586,1738895447196,-500.0,0.00017122,2]
[352041587,1738895447206,-500.0,0.00017122,2]
[352041588,1738895447214,-500.0,0.00017122,2]
[352041589,1738895447223,-500.0,0.00017122,2]
[352041590,1738895447233,-500.0,0.00017123,2]
[352041591,1738895447242,-500.0,0.00017123,2]
[352041592,1738895447251,-192.65504245,0.00017123,2]
[352041593,1738895447260,-500.0,0.00017123,2]
[352041594,1738895447270,-500.0,0.00017123,2]
[352041595,1738895447279,-500.0,0.00017123,2]
[352041596,1738895447288,-500.0,0.00017123,2]
[352041597,1738895447297,-525.3400682,0.00017123,2]
[352041598,1738895447306,-500.0,0.00017123,2]
[352041599,1738895447315,-500.0,0.00017123,2]
[352041600,1738895447324,-500.0,0.00017123,2]
[352041601,1738895447333,-649.13,0.00017123,2]
[352041602,1738895447343,-371.43402473,0.00017123,2]
[352041603,1738895447352,-500.0,0.00017123,2]
[352041604,1738895447361,-500.0,0.00017123,2]
[352041605,1738895447370,-500.0,0.00017123,2]
[352041606,1738895447382,-500.0,0.00017123,2]
[352041607,1738895447391,-500.0,0.00017123,2]
[352041608,1738895447400,-500.0,0.00017123,2]
[352041609,1738895447410,-500.0,0.00017123,2]
[352041610,1738895447420,-500.0,0.00017123,2]
[352041611,1738895447429,-297.244076,0.00017123,2]
[352041612,1738895447439,-500.0,0.00017123,2]
[352041613,1738895447447,-500.0,0.00017123,2]
[352041614,1738895447456,-307.064032,0.00017123,2]
[352041616,1738895447465,-500.0,0.00017123,2]
[352041618,1738895447474,-500.0,0.00017123,2]
[352041620,1738895447482,-500.0,0.00017123,2]
[352041622,1738895447491,-510.74,0.00017123,2]
[352041624,1738895447500,-500.0,0.00017123,2]
[352041626,1738895447509,-500.0,0.00017123,2]
[352041627,1738895447519,-500.0,0.00017123,2]
[352041628,1738895447528,-567.27,0.00017123,2]
[352041629,1738895447537,-500.0,0.00017123,2]
[352041630,1738895447546,-500.0,0.00017123,2]
[352041631,1738895447559,-500.0,0.00017123,2]
[352041632,1738895447568,-500.0,0.00017123,2]
[352041633,1738895447579,-500.0,0.00017123,2]
[352041634,1738895447588,-500.0,0.00017123,2]
[352041635,1738895447600,-500.0,0.00017123,2]
[352041636,1738895447609,-500.0,0.00017123,2]
[352041637,1738895447619,-500.0,0.00017123,2]
[352041638,1738895447628,-680.18,0.00017123,2]
[352041639,1738895447640,-539.28,0.00017123,2]
[352041640,1738895447650,-500.0,0.00017123,2]
[352041642,1738895447659,-702.09,0.00017123,2]
[352041643,1738895447670,-500.0,0.00017123,2]
[352041644,1738895447678,-500.0,0.00017123,2]
[352041645,1738895447687,-653.43,0.00017123,2]
[352041646,1738895447697,-500.0,0.00017123,2]
[352041647,1738895447706,-500.0,0.00017123,2]
[352041648,1738895447716,-1734.92,0.00017123,2]
[352041649,1738895447725,-551.29,0.00017123,2]
[352041650,1738895447735,-500.0,0.00017123,2]
[352041651,1738895447745,-500.0,0.00017123,2]
[352041652,1738895447755,-784.75,0.00017123,2]
[352041653,1738895447764,-500.0,0.00017123,2]
[352041654,1738895447773,-1867.58,0.00017123,2]
[352041655,1738895447782,-695.7,0.00017123,2]
[352041656,1738895447791,-500.0,0.00017123,2]
[352041657,1738895447801,-1070.52,0.00017123,2]
[352041658,1738895447811,-500.0,0.00017123,2]
[352041659,1738895447821,-1235.97,0.00017123,2]
[352041660,1738895447831,-1422.89,0.00017123,2]
[352041661,1738895447851,-500.0,0.00017123,2]
[352041662,1738895447870,-500.0,0.00017123,2]
[352041663,1738895447879,-692.8,0.00017123,2]
[352041664,1738895447888,-500.0,0.00017123,2]
[352041665,1738895447898,-849.57,0.00017123,2]
[352041666,1738895447908,-500.0,0.00017123,2]
[352041667,1738895447917,-500.0,0.00017123,2]
[352041668,1738895447928,-983.82,0.00017123,2]
[352041669,1738895447938,-648.16,0.00017123,2]
[352041670,1738895447949,-500.0,0.00017123,2]
[352041671,1738895447959,-1366.1,0.00017123,2]
[352041672,1738895447969,-739.4,0.00017123,2]
[352041673,1738895447979,-651.47,0.00017123,2]
[352041674,1738895447989,-555.97,0.00017123,2]
[352041675,1738895447999,-870.22,0.00017123,2]
[352041676,1738895448008,-500.0,0.00017123,2]
[352041677,1738895448017,-604.43,0.00017123,2]
[352041678,1738895448027,-1242.61,0.00017123,2]
[352041679,1738895448037,-645.08,0.00017123,2]
[352041680,1738895448047,-500.0,0.00017123,2]
[352041681,1738895448058,-500.0,0.00017123,2]
[352041682,1738895448068,-791.64,0.00017123,2]
[352041683,1738895448078,-1208.53,0.00017123,2]
[352041684,1738895448089,-500.0,0.00017123,2]
[352041685,1738895448099,-1108.61,0.00017123,2]
[352041686,1738895448109,-500.0,0.00017123,2]
[352041687,1738895448117,-2627.99,0.00017123,2]
[352041688,1738895448127,-1506.56,0.00017123,2]
[352041689,1738895448137,-1375.62,0.00017123,2]
[352041690,1738895448147,-500.0,0.00017123,2]
[352041691,1738895448158,-690.72,0.00017123,2]
[352041692,1738895448168,-2827.92,0.00017123,2]
[352041693,1738895448180,-795.04,0.00017123,2]
[352041694,1738895448190,-500.0,0.00017123,2]
[352041695,1738895448201,-1197.66,0.00017123,2]
[352041696,1738895448211,-603.67,0.00017123,2]
[352041697,1738895448221,-500.0,0.00017123,2]
[352041698,1738895448232,-772.87,0.00017123,2]
[352041699,1738895448242,-718.93,0.00017123,2]
[352041700,1738895448252,-500.0,0.00017123,2]
[352041701,1738895448262,-649.67,0.00017123,2]
[352041702,1738895448272,-633.97,0.00017123,2]
[352041703,1738895448281,-500.0,0.00017123,2]
[352041704,1738895448291,-978.53,0.00017123,2]
[352041705,1738895448301,-677.15,0.00017123,2]
[352041706,1738895448312,-500.0,0.00017123,2]
[352041707,1738895448322,-541.5,0.00017123,2]
[352041708,1738895448332,-1320.16,0.00017123,2]
[352041709,1738895448341,-537.76,0.00017123,2]
[352041710,1738895448351,-1604.45,0.00017123,2]
[352041711,1738895448361,-1277.59,0.00017123,2]
[352041712,1738895448370,-905.79,0.00017123,2]
[352041713,1738895448380,-676.31,0.00017123,2]
[352041714,1738895448390,-1116.2,0.00017123,2]
[352041715,1738895448399,-1406.75,0.00017123,2]
[352041716,1738895448409,-500.0,0.00017123,2]
[352041717,1738895448421,-721.61,0.00017123,2]
[352041718,1738895448432,-2569.87,0.00017123,2]
[352041719,1738895448444,-936.14,0.00017123,2]
[352041720,1738895448456,-1528.36,0.00017123,2]
[352041721,1738895448468,-649.05,0.00017123,2]
[352041722,1738895448479,-667.45,0.00017123,2]
[352041723,1738895448489,-774.79,0.00017123,2]
[352041724,1738895448500,-1208.52,0.00017123,2]
[352041725,1738895448511,-500.0,0.00017123,2]
[352041726,1738895448521,-500.0,0.00017123,2]
[352041727,1738895448531,-500.0,0.00017123,2]
[352041728,1738895448542,-539.35,0.00017123,2]
[352041729,1738895448554,-846.32,0.00017123,2]
[352041730,1738895448565,-769.85,0.00017123,2]
[352041731,1738895448578,-724.26,0.00017123,2]
[352041732,1738895448589,-2264.55,0.00017123,2]
[352041733,1738895448601,-500.0,0.00017123,2]
[352041734,1738895448612,-656.81,0.00017123,2]
[352041735,1738895448622,-500.0,0.00017123,2]
[352041736,1738895448633,-946.94,0.00017123,2]
[352041737,1738895448643,-859.01,0.00017123,2]
[352041738,1738895448653,-293.39317259,0.00017123,2]
[352041739,1738895448662,-500.0,0.00017123,2]
[352041740,1738895448672,-834.43,0.00017123,2]
[352041741,1738895448681,-500.0,0.00017123,2]
[352041742,1738895448691,-1416.28,0.00017123,2]
[352041743,1738895448700,-551.62,0.00017123,2]
[352041744,1738895448710,-500.0,0.00017123,2]
[352041745,1738895448719,-657.98,0.00017123,2]
[352041746,1738895448729,-500.0,0.00017123,2]
[352041747,1738895448739,-908.12,0.00017123,2]
[352041748,1738895448750,-419.97406451,0.00017123,5]
[352041749,1738895448760,-200.0,0.00017158,2]
[352041750,1738895448772,-200.0,0.00017158,2]
[352041751,1738895448783,-150.0,0.00017165,2]
[352041752,1738895448794,-150.0,0.0001717,2]
[352041753,1738895448805,-1000.0,0.00017176,2]
[352041754,1738895448816,-150.0,0.00017188,2]
[352041755,1738895448828,-1357.0,0.000172,2]
[352041756,1738895448839,-150.0,0.00017201,2]
[352041757,1738895448850,-419.97406451,0.00017205,5]
[352041758,1738895448863,-150.0,0.00017223,2]
[352041759,1738895448875,-150.0,0.00017247,2]
[352041760,1738895448887,-626.22,0.00017258,2]
[352041761,1738895448898,-189.67305363,0.00017258,2]
[352041762,1738895448915,-853.36694637,0.00017258,2]
[352041763,1738895448928,-765.92,0.00017258,2]
[352041764,1738895448941,-500.0,0.00017258,2]
[352041765,1738895448953,-840.88,0.00017258,2]
[352041766,1738895448965,-307.53,0.00017259,2]
[352041767,1738895448976,-541.9,0.00017259,2]
[352041768,1738895448988,-500.0,0.00017259,2]
[352041769,1738895448998,-500.0,0.00017259,2]
[352041770,1738895449008,-151.0,0.00017259,2]
[352041771,1738895449018,-500.0,0.00017259,2]
[352041772,1738895449029,-151.0,0.00017259,2]
[352041773,1738895449039,-500.0,0.00017259,2]
[352041774,1738895449051,-211.70221335,0.00017259,2]
[352041775,1738895449066,-378.5,0.00017259,2]
[352041776,1738895449078,-500.0,0.00017259,2]
[352041777,1738895449091,-500.0,0.00017259,2]
[352041778,1738895449104,-559.37330239,0.00017259,2]
[352041779,1738895449117,-999.0,0.00017259,2]
[352041780,1738895449130,-500.0,0.00017259,2]
[352041781,1738895449143,-500.0,0.00017259,2]
[352041782,1738895449156,-500.0,0.00017259,2]
[352041783,1738895449168,-500.0,0.00017259,2]
[352041784,1738895449182,-500.0,0.00017259,2]
[352041785,1738895449193,-500.0,0.00017259,2]
[352041786,1738895449206,-500.0,0.00017259,2]
[352041787,1738895449219,-150.0,0.00017259,2]
[352041788,1738895449232,-500.0,0.00017259,2]
[352041789,1738895449244,-500.0,0.0001726,2]
[352041790,1738895449255,-500.0,0.0001726,2]
[352041791,1738895449266,-500.0,0.0001726,2]
[352041792,1738895449277,-500.0,0.0001726,2]
[352041793,1738895449287,-500.0,0.0001726,2]
[352041794,1738895449298,-500.0,0.0001726,2]
[352041795,1738895449308,-500.0,0.0001726,2]
[352041796,1738895449318,-500.0,0.0001726,2]
[352041797,1738895449329,-500.0,0.0001726,2]
[352041798,1738895449340,-649.13,0.0001726,2]
[352041799,1738895449351,-284.631267,0.0001726,2]
[352041800,1738895449362,-500.0,0.0001726,2]
[352041801,1738895449373,-500.0,0.0001726,2]
[352041802,1738895449384,-500.0,0.0001726,2]
[352041803,1738895449396,-500.0,0.0001726,2]
[352041804,1738895449407,-500.0,0.0001726,2]
[352041805,1738895449418,-500.0,0.0001726,2]
[352041806,1738895449428,-500.0,0.0001726,2]
[352041807,1738895449438,-1453.67,0.0001726,4]
[352041808,1738895449448,-297.244076,0.0001726,2]
[352041809,1738895449458,-500.0,0.0001726,2]
[352041810,1738895449468,-500.0,0.0001726,2]
[352041811,1738895449478,-307.064032,0.0001726,2]
[352041812,1738895449488,-500.0,0.0001726,2]
[352041813,1738895449499,-500.0,0.0001726,2]
[352041814,1738895449511,-500.0,0.0001726,2]
[352041815,1738895449521,-510.74,0.0001726,2]
[352041816,1738895449531,-500.0,0.0001726,2]
[352041817,1738895449541,-500.0,0.0001726,2]
[352041818,1738895449552,-500.0,0.0001726,2]
[352041819,1738895449563,-567.27,0.0001726,2]
[352041820,1738895449577,-500.0,0.0001726,2]
[352041821,1738895449586,-500.0,0.0001726,2]
[352041822,1738895449596,-500.0,0.0001726,2]
[352041823,1738895449607,-500.0,0.0001726,2]
[352041824,1738895449617,-500.0,0.0001726,2]
[352041825,1738895449626,-500.0,0.0001726,2]
[352041826,1738895449636,-500.0,0.0001726,2]
[352041827,1738895449648,-500.0,0.0001726,2]
[352041828,1738895449658,-500.0,0.0001726,2]
[352041829,1738895449668,-680.18,0.0001726,2]
[352041830,1738895449678,-539.28,0.0001726,2]
[352041831,1738895449688,-500.0,0.0001726,2]
[352041832,1738895449698,-702.09,0.0001726,2]
[352041833,1738895449709,-500.0,0.0001726,2]
[352041834,1738895449718,-500.0,0.0001726,2]
[352041835,1738895449728,-653.43,0.0001726,2]
[352041836,1738895449739,-500.0,0.0001726,2]
[352041837,1738895449748,-500.0,0.0001726,2]
[352041838,1738895449759,-1734.92,0.0001726,2]
[352041839,1738895449768,-551.29,0.0001726,2]
[352041840,1738895449778,-500.0,0.0001726,2]
[352041841,1738895449788,-500.0,0.0001726,2]
[352041842,1738895449798,-784.75,0.0001726,2]
[352041843,1738895449808,-281.91253623,0.0001726,2]
[352041844,1738895449818,-1867.58,0.0001726,2]
[352041845,1738895449828,-695.7,0.0001726,2]
[352041846,1738895449838,-500.0,0.0001726,2]
[352041847,1738895449848,-1070.52,0.0001726,2]
[352041848,1738895449858,-500.0,0.0001726,2]
[352041849,1738895449867,-1235.97,0.0001726,2]
[352041850,1738895449878,-343.09798938,0.0001726,2]
[352041851,1738895449893,-655.0,0.0001726,2]
[352041852,1738895449905,-424.79201062,0.0001726,2]
[352041853,1738895449915,-101.88648554,0.0001726,2]
[352041854,1738895449933,-398.11351446,0.0001726,2]
[352041855,1738895449943,-256.72648154,0.0001726,2]
[352041856,1738895450172,-5197.04994013,8.973e-05,2]
[352041857,1738895450184,-5686.06515987,8.973e-05,2]
[352041858,1738895450195,-243.27351846,0.0001726,2]
[352041859,1738895450205,-692.8,0.0001726,2]
[352041860,1738895450214,-849.57,0.0001726,2]
[352041861,1738895450226,-500.0,0.0001726,2]
[352041862,1738895450236,-983.82,0.0001726,2]
[352041863,1738895450247,-648.16,0.0001726,2]
[352041864,1738895450258,-500.0,0.0001726,2]
[352041865,1738895450268,-500.0,0.0001726,2]
[352041866,1738895450278,-1366.1,0.0001726,2]
[352041867,1738895450287,-739.4,0.0001726,2]
[352041868,1738895450298,-651.47,0.0001726,2]
[352041869,1738895450308,-555.97,0.0001726,2]
[352041870,1738895450319,-870.22,0.0001726,2]
[352041871,1738895450329,-500.0,0.0001726,2]
[352041872,1738895450339,-604.43,0.0001726,2]
[352041873,1738895450349,-1242.61,0.0001726,2]
[352041874,1738895450360,-645.08,0.0001726,2]
[352041875,1738895450371,-500.0,0.0001726,2]
[352041876,1738895450380,-500.0,0.0001726,2]
[352041877,1738895450391,-791.64,0.0001726,2]
[352041878,1738895450401,-1208.53,0.0001726,2]
[352041879,1738895450411,-515.75919426,0.0001726,2]
[352041880,1738895450422,-1108.61,0.0001726,2]
[352041881,1738895450432,-500.0,0.0001726,2]
[352041882,1738895450442,-2627.99,0.0001726,2]
[352041883,1738895450453,-1506.56,0.0001726,2]
[352041884,1738895450464,-1375.62,0.0001726,2]
[352041885,1738895450648,-522.74210538,0.0001726,2]
[352041886,1738895450665,-690.72,0.0001726,2]
[352041887,1738895450674,-2827.92,0.0001726,2]
[352041888,1738895450683,-795.04,0.0001726,2]
[352041889,1738895450694,-500.0,0.0001726,2]
[352041890,1738895450704,-1197.66,0.0001726,2]
[352041891,1738895450714,-603.67,0.0001726,2]
[352041892,1738895450724,-500.0,0.0001726,2]
[352041893,1738895450734,-772.87,0.0001726,2]
[352041894,1738895450744,-718.93,0.0001726,2]
[352041895,1738895450754,-500.0,0.0001726,2]
[352041896,1738895450763,-649.67,0.0001726,2]
[352041897,1738895450773,-633.97,0.0001726,2]
[352041898,1738895450783,-500.0,0.0001726,2]
[352041899,1738895450792,-978.53,0.0001726,2]
[352041900,1738895450802,-677.15,0.0001726,2]
[352041901,1738895450812,-500.0,0.0001726,2]
[352041902,1738895450822,-541.5,0.0001726,2]
[352041903,1738895450832,-1320.16,0.0001726,2]
[352041904,1738895450842,-537.76,0.0001726,2]
[352041905,1738895450851,-1604.45,0.0001726,2]
[352041906,1738895450861,-1277.59,0.0001726,2]
[352041907,1738895450871,-905.79,0.0001726,2]
[352041908,1738895450881,-676.31,0.0001726,2]
[352041909,1738895450890,-1116.2,0.0001726,2]
[352041910,1738895450900,-1406.75,0.0001726,2]
[352041911,1738895450910,-500.0,0.0001726,2]
[352041912,1738895450919,-721.61,0.0001726,2]
[352041913,1738895450931,-2569.87,0.0001726,2]
[352041914,1738895450941,-936.14,0.0001726,2]
[352041915,1738895450951,-1528.36,0.0001726,2]
[352041916,1738895450960,-649.05,0.0001726,2]
[352041917,1738895450970,-667.45,0.0001726,2]
[352041918,1738895450979,-774.79,0.0001726,2]
[352041919,1738895450989,-1208.52,0.0001726,2]
[352041920,1738895450999,-500.0,0.0001726,2]
[352041921,1738895451009,-500.0,0.0001726,2]
[352041922,1738895451019,-500.0,0.0001726,2]
[352041923,1738895451031,-539.35,0.0001726,2]
[352041924,1738895451041,-846.32,0.0001726,2]
[352041925,1738895451051,-769.85,0.0001726,2]
[352041926,1738895451060,-724.26,0.0001726,2]
[352041927,1738895451070,-2264.55,0.0001726,2]
[352041928,1738895451080,-500.0,0.0001726,2]
[352041929,1738895451089,-656.81,0.0001726,2]
[352041930,1738895451099,-500.0,0.0001726,2]
[352041931,1738895451108,-946.94,0.0001726,2]
[352041932,1738895451118,-859.01,0.0001726,2]
[352041933,1738895451127,-500.0,0.0001726,2]
[352041934,1738895451138,-834.43,0.0001726,2]
[352041935,1738895451147,-500.0,0.0001726,2]
[352041936,1738895451158,-1416.28,0.0001726,2]
[352041937,1738895451168,-551.62,0.0001726,2]
[352041938,1738895451178,-500.0,0.0001726,2]
[352041939,1738895451187,-657.98,0.0001726,2]
[352041940,1738895451196,-500.0,0.0001726,2]
[352041941,1738895451206,-908.12,0.0001726,2]
[352041942,1738895451215,-152.0,0.00017273,5]
[352041943,1738895451225,-150.0,0.00017284,2]
[352041944,1738895451234,-150.0,0.00017287,2]
[352041945,1738895451244,-419.97406451,0.00017288,5]
[352041946,1738895451253,-150.0,0.00017291,2]
[352041947,1738895451263,-150.0,0.00017315,2]
[352041948,1738895451273,-150.0,0.00017315,2]
[352041949,1738895451283,-438.66,0.00017315,2]
[352041950,1738895451294,-150.0,0.00017315,2]
[352041951,1738895451305,-438.62,0.00017315,2]
[352041952,1738895451315,-150.0,0.00017315,2]
[352041953,1738895451325,-1054.27995848,0.00017321,2]
[352041954,1738895451335,-226.47411208,0.00017321,2]
[352041955,1738895451345,-200.0,0.0001733,2]
[352041956,1738895451354,-249.27279791,0.00017333,2]
[352041957,1738895451364,-194821.33513402,0.00017334,2]
[352041958,1738895451374,-150.0,0.00017348,2]
[352041959,1738895451383,-419.97406451,0.0001737,5]
[352041960,1738895451392,-8146.00470308,0.00017378,2]
[352041961,1738895451402,-150.0,0.00017379,2]
[352041962,1738895451411,-200.0,0.00017381,2]
[352041963,1738895451420,-150.0,0.00017382,2]
[352041964,1738895451430,-8146.00470308,0.00017384,2]
[352041965,1738895451440,-569.703,0.00017386,2]
[352041966,1738895451449,-638.0,0.00017386,2]
[352041967,1738895451459,-150.481,0.00017386,2]
[352041968,1738895451468,-1827.0,0.00017386,2]
[352041969,1738895451477,-783.0,0.00017386,2]
[352041970,1738895451487,-907.0,0.00017386,2]
[352041971,1738895451496,-2954.0,0.00017386,2]
[352041972,1738895451506,-1267.747,0.00017386,2]
[352041973,1738895451515,-539.0,0.00017386,2]
[352041974,1738895451524,-4024.0,0.00017386,2]
[352041975,1738895451534,-329.165,0.00017386,2]
[352041976,1738895451544,-3912.0,0.00017386,2]
[352041977,1738895451554,-150.694,0.00017386,2]
[352041978,1738895451565,-1274.842,0.00017386,2]
[352041979,1738895451575,-2023.0,0.00017386,2]
[352041980,1738895451585,-150.0,0.00017391,2]
[352041981,1738895451594,-57316.49366905,0.00017392,2]
[352041982,1738895451605,-1043.04,0.00017395,2]
[352041983,1738895451615,-765.92,0.00017395,2]
[352041984,1738895451625,-500.0,0.00017395,2]
[352041985,1738895451635,-840.88,0.00017395,2]
[352041986,1738895451647,-307.53,0.00017396,2]
[352041987,1738895451657,-541.9,0.00017396,2]
[352041988,1738895451666,-500.0,0.00017396,2]
[352041989,1738895451675,-500.0,0.00017396,2]
[352041990,1738895451684,-500.0,0.00017396,2]
[352041991,1738895451693,-500.0,0.00017396,2]
[352041992,1738895451702,-378.5,0.00017396,2]
[352041993,1738895451712,-500.0,0.00017396,2]